Workbook

Sheet ITS & Rajani Consulting
B1: 2024-01-01 | C1: 2024-11-30 | E1: =DATEDIF(B1,C1,"M")+1 -> 11 | F1: Monthly
A2: Ordinary Income/Expense Income
A3: Therapy Revenue | B3: 85795.57 | F3: =B3/$E$1 -> 7799.597273
A4: Clinician Revenue | B4: 185861.58 | F4: =B4/$E$1 -> 16896.50727
A5: Total Income | C5: 271657.15 | G5: =C5/$E$1 -> 24696.10455
A7: Cost of Goods Sold
A8: Provider Payments | B8: 114097.4 | F8: =B8/$E$1 -> 10372.49091
A9: Total COGS | C9: 114097.4 | G9: =C9/$E$1 -> 10372.49091
A10: Gross Profit | C10: 157559.75 | G10: 14323.61364
A12: Expenses
A13: Rent Expense | B13: 9240 | F13: =B13/$E$1 -> 840
A14: Office Cleaning | B14: 410 | F14: =B14/$E$1 -> 37.27272727
A15: Therapy Dog Expense | B15: 967.8 | F15: 87.98181818
A16: Accounting Fees | B16: 6695 | F16: 608.6363636
A17: Dues & Subscriptions
A18: J2 EFax Services | B18: 208.89 | F18: 18.99
A19: CashFlow Complete | B19: 275 | F19: 25
A20: Google G Suite | B20: 834.97 | F20: 75.90636364
A21: Psychology Today | B21: -29.95 | F21: -2.722727273
A22: Therapy Notes | B22: 2078.4 | F22: 188.9454545
A23: Total Dues & Subscriptions | B23: 3367.31 | F23: 306.1190909
A24: CC Transaction Fees | B24: 1931.51 | F24: 175.5918182
A25: Advertising and Promotion | B25: 1226.51 | F25: 111.5009091
A26: Bank Service Charges | B26: 2237.66 | F26: 203.4236364
A27: Computer and Internet Expenses | B27: 246.75 | F27: 22.43181818
A28: Furnishings Expense | B28: 2219.18 | F28: 201.7436364
A29: Insurance Expense | B29: 1675.13 | F29: 152.2845455
A30: Licenses and Permits | B30: 120 | F30: 10.90909091
A31: Meetings & Seminars | B31: 1084.2 | F31: 98.56363636
A32: Office Supplies | B32: 9842.17 | F32: 894.7427273
A33: Professional Fees | B33: 1207.56 | F33: 109.7781818
A34: Repairs and Maintenance | B34: 1019.59 | F34: 92.69
A35: Telephone Expense | B35: 3155.65 | F35: 286.8772727
A36: Travel Expense | B36: 113.95 | F36: 10.35909091
A37: Total Expense | C37: 46759.97 | G37: 4250.906364
A38: Net Ordinary Income | B38: 110799.78 | F38: 10072.70727
A39: Net Income | C39: 110799.78 | G39: 10072.70727

Sheet Rajani Consulting
E3: Ordinary Income/Expense Income | G3: Ordinary Income/Expense Income
E4: Therapy Revenue 85,795.57 | G4: Therapy Revenue | H4: 85795.57 | I4: =H4/11 -> 7799.597273
E5: Total Income 85,795.57 | G5: Total Income | H5: 85795.57 | I5: =H5/11 -> 7799.597273
E6: Expense | G6: Expense
E7: Bank Service Charges 154.00 | G7: Bank Service Charges | H7: 154 | I7: =H7/11 -> 14
E8: Merchant Bankcard Service Fees 1,628.50 | G8: Merchant Bankcard Service Fees | H8: 1628.5 | I8: 148.0454545
E9: Total Expense 1,782.50 | G9: Total Expense | H9: 1782.5 | I9: 162.0454545
E10: Net Ordinary Income 84,013.07 | G10: Net Ordinary Income | H10: 84013.07 | I10: 7637.551818
E11: Net Income 84,013.07 | G11: Net Income | H11: 84013.07 | I11: 7637.551818
G12: From 2023 Return | I12: 8387
I13: =AVERAGE(I11:I12) -> 8012.275909

Sheet Sheet4
A1: SOCIAL SECURITY NUMBER: | B1: XXX-XX-3485 | D1: SOCIAL SECURITY NUMBER: | E1: XXX-XX-3485
A2: EMPLOYER ID NUMBER: | B2: XX-XXX9569 | D2: EMPLOYER ID NUMBER: | E2: XX-XXX2835
A3: BUSINESS NAME: | B3: RAJA CONS L | D3: BUSINESS NAME: | E3: INTE THER
A4: DESCRIPTION OF BUSINESS/PROFESSION: | D4: DESCRIPTION OF BUSINESS/PROFESSION:
A5: NAICS CODE: | B5: 621330 | D5: NAICS CODE: | E5: 621330
A6: ACCT MTHD: | B6: Cash | D6: ACCT MTHD: | E6: Cash
A7: FIRST TIME SCHEDULE C FILED: | B7: N | D7: FIRST TIME SCHEDULE C FILED: | E7: N
A8: STATUTORY EMPLOYEE IND: | B8: N | D8: STATUTORY EMPLOYEE IND: | E8: N
A10: INCOME | D10: INCOME | J10: %RC | K10: %ITS
A11: GROSS RECEIPTS OR SALES: | B11: 100648 | D11: GROSS RECEIPTS OR SALES: | E11: 129347 | F11: =E11/12 -> 10778.91667 | H11: Total Gross | I11: =SUM(E11,B11) -> 229995 | J11: =B11/I11 -> 0.4376095133 | K11: =E11/I11 -> 0.5623904867
A12: RETURNS AND ALLOWANCES: | B12: 0 | D12: RETURNS AND ALLOWANCES: | E12: 0
A13: NET GROSS RECEIPTS: | B13: 100648 | D13: NET GROSS RECEIPTS: | E13: 129347 | F13: =E13/12 -> 10778.91667
A14: COST OF GOODS SOLD: | B14: 0 | D14: COST OF GOODS SOLD: | E14: 0
A15: SCHEDULE C FORM 1099 REQUIRED: | B15: NO | D15: SCHEDULE C FORM 1099 REQUIRED: | E15: YES
A16: SCHEDULE C FORM 1099 FILED: | B16: NONE | D16: SCHEDULE C FORM 1099 FILED: | E16: YES
A17: OTHER INCOME: | B17: 0 | D17: OTHER INCOME: | E17: 0
A19: EXPENSES | D19: EXPENSES
A20: CAR AND TRUCK EXPENSES: | B20: 10099 | D20: CAR AND TRUCK EXPENSES: | E20: 0
A21: DEPRECIATION: | B21: 0 | D21: DEPRECIATION: | E21: 0
A22: INSURANCE (OTHER THAN HEALTH): | B22: 165 | D22: INSURANCE (OTHER THAN HEALTH): | E22: 28 | F22: =E22/12 -> 2.333333333
A23: MORTGAGE INTEREST: | B23: 0 | D23: MORTGAGE INTEREST: | E23: 0
A24: LEGAL AND PROFESSIONAL SERVICES: | B24: 535 | D24: LEGAL AND PROFESSIONAL SERVICES: | E24: 6196 | F24: =E24/12 -> 516.3333333
A25: REPAIRS AND MAINTENANCE: | B25: 0 | D25: REPAIRS AND MAINTENANCE: | E25: 0
A26: TRAVEL: | B26: 0 | D26: TRAVEL: | E26: 0
A27: MEALS AND ENTERTAINMENT: | B27: 0 | D27: MEALS AND ENTERTAINMENT: | E27: 0
A28: WAGES: | B28: 0 | D28: WAGES: | E28: 0
A29: OTHER EXPENSES: | B29: 17206 | D29: OTHER EXPENSES: | E29: 18729 | F29: =E29/12 -> 1560.75
A30: TOTAL EXPENSES: | B30: 41688 | D30: TOTAL EXPENSES: | E30: 119872 | F30: =E30/12 -> 9989.333333
A31: EXP FOR BUSINESS USE OF HOME: | B31: 1500 | D31: EXP FOR BUSINESS USE OF HOME: | E31: 0
A32: SCH C NET PROFIT OR LOSS PER COMPUTER: | B32: 57460 | D32: SCH C NET PROFIT OR LOSS PER COMPUTER: | E32: 9475 | F32: =E32/12 -> 789.5833333 | H32: Total Net | I32: =SUM(E32,B32) -> 66935 | J32: =B32/I32 -> 0.8584447598 | K32: =E32/I32 -> 0.1415552402
A33: AT RISK CD: | D33: AT RISK CD:
A34: OFFICE EXPENSE AMOUNT: | B34: 0 | D34: OFFICE EXPENSE AMOUNT: | E34: 0
A35: UTILITIES EXPENSE AMOUNT: | B35: 7418 | D35: UTILITIES EXPENSE AMOUNT: | E35: 0
A36: ENERGY EFFICIENT BUILDING DEDUCTION: | B36: 0 | D36: ENERGY EFFICIENT BUILDING DEDUCTION: | E36: 0
A38: COST OF GOODS SOLD | D38: COST OF GOODS SOLD
A39: INVENTORY AT BEGINNING OF YEAR: | B39: 0 | D39: INVENTORY AT BEGINNING OF YEAR: | E39: 0
A40: INVENTORY AT END OF YEAR: | B40: 0 | D40: INVENTORY AT END OF YEAR: | E40: 0 | H40: Percentage of Tax
J41: 11936 | K41: 1943 | L41: =SUM(J41:K41) -> 13879
A42: Schedule C--Profit or Loss From Business (Occurrence #: 2) | J42: =J41/B11 -> 0.1185915269 | K42: =K41/E11 -> 0.01502160854

Sheet Commerce Bank
C2: Deposits
C3: 2024-06-01 | D3: 8670.03
C4: 2024-07-01 | D4: 12747.05
C5: 2024-08-01 | D5: 7537.04
C6: 2024-09-01 | D6: 7182.42
C7: 2024-10-01 | D7: 6562.95
C8: 2024-11-01 | D8: 5874.99
C9: Average | D9: =AVERAGE(D3:D8) -> 8095.746667
